[Event "Bijnor Open 2023"]
[Site "Bijnor"]
[Date "2023.12.02"]
[Round "5.9"]
[White "Sharma, Hari O.M."]
[Black "Anant Panwar"]
[Result "1-0"]
[ECO "D02"]
[WhiteElo "2045"]
[BlackElo "1245"]
[Annotator "RC"]
[PlyCount "103"]
[EventDate "2023.11.29"]
[EventCountry "IND"]
[SourceTitle "playchess.com"]
[Source "ChessBase"]
[SourceQuality "1"]
[TimeControl "5400+30"]

1. d4 {[%emt 0:00:14]} d5 {[%emt 0:00:09]} 2. Nf3 {[%emt 0:01:39]} Nf6 {[%emt 0:00:31]} 3. g3 {[%emt 0:00:34]} e6 {[%emt 0:00:52]} 4. Bg2 {[%emt 0:00:26]} c5 {[%emt 0:01:30]} 5. O-O {[%emt 0:00:24]} Nc6 {[%emt 0:02:01]} 6. b3 {[%emt 0:05:04]} cxd4 {[%emt 0:05:06]} 7. Nxd4 {[%emt 0:00:15]} Bc5 {[%emt 0:05:01]} 8. Bb2 {[%emt 0:02:57]} Bxd4 {[%emt 0:02:32]} 9. Bxd4 {[%emt 0:00:11]} Nxd4 {[%emt 0:00:12]} 10. Qxd4 {[%emt 0:00:27]} O-O {[%emt 0:00:30]} 11. c4 {[%emt 0:03:52]} dxc4 {[%emt 0:04:35]} 12. Qxc4 {[%emt 0:00:35]} Qb6 {[%emt 0:02:22]} 13. e4 {[%emt 0:09:35]} e5 {[%emt 0:04:54]} 14. Qc3 {[%emt 0:00:42]} Re8 {[%emt 0:08:00]} 15. Nd2 {[%emt 0:09:03]} Bg4 {[%emt 0:13:46]} 16. Nc4 {[%emt 0:02:36]} Rac8 {[%emt 0:05:00]} 17. Qe1 {[%emt 0:05:36]} Qc5 {[%emt 0:08:05]} 18. Rc1 {[%emt 0:03:14]} b5 {[%emt 0:03:37]} 19. Ne3 {[%emt 0:02:39]} Qxc1 {[%emt 0:02:50]} 20. Qxc1 {[%emt 0:00:09]} Rxc1 {[%emt 0:00:05]} 21. Rxc1 {[%emt 0:00:17]} Rc8 {[%emt 0:04:55]} 22. Re1 {[%emt 0:02:02]} Be6 {[%emt 0:02:46]} 23. f4 {[%emt 0:01:50]} exf4 {[%emt 0:01:14]} 24. gxf4 {[%emt 0:00:12]} Kf8 {[%emt 0:07:34]} 25. Bf3 {[%emt 0:00:48]} g6 {[%emt 0:07:17]} 26. e5 {[%emt 0:02:24]} Ne8 {[%emt 0:01:30]} 27. Rd1 {[%emt 0:02:53]} Ke7 {[%emt 0:02:30]} 28. Kf2 {[%emt 0:03:36]} Ng7 {[%emt 0:00:42]} 29. Be2 {[%emt 0:07:48]} b4 {[%emt 0:01:58]} 30. Rd4 {[%emt 0:00:43]} Rb8 {[%emt 0:01:01]} 31. Bc4 {[%emt 0:02:39]} Nf5 {[%emt 0:00:56]} 32. Nxf5+ {[%emt 0:00:57]} Bxf5 {[%emt 0:00:12]} 33. Rd6 {[%emt 0:00:37]} Be6 {[%emt 0:01:25]} 34. Bxe6 {[%emt 0:01:51]} fxe6 {[%emt 0:00:04]} 35. Ra6 {[%emt 0:00:13]} Rb7 {[%emt 0:00:31]} 36. Kg3 {[%emt 0:02:08]} Kf7 {[%emt 0:00:54]} 37. Kg4 {[%emt 0:00:27]} h6 {[%emt 0:00:42]} 38. h4 {[%emt 0:00:41]} h5+ {[%emt 0:00:26]} 39. Kg5 {[%emt 0:02:07]} Re7 {[%emt 0:00:46]} 40. f5 {[%emt 0:01:58]} exf5 {[%emt 0:00:10]} 41. Rf6+ {[%emt 0:00:11]} Ke8 {[%emt 0:00:45]} 42. e6 {[%emt 0:00:13]} Rh7 {[%emt 0:00:55]} 43. Kxg6 {[%emt 0:00:43]} Rc7 {[%emt 0:00:27]} 44. Rf7 {[%emt 0:03:32]} Rc2 {[%emt 0:00:36]} 45. Kf6 {[%emt 0:00:12]} Rxa2 {[%emt 0:00:08]} 46. Rh7 {[%emt 0:01:33]} Kd8 {[%emt 0:00:13]} 47. Rh8+ {[%emt 0:00:12]} Kc7 {[%emt 0:00:03]} 48. e7 {[%emt 0:00:12]} Re2 {[%emt 0:00:55]} 49. e8=Q {[%emt 0:00:12]} Rxe8 {[%emt 0:00:13]} 50. Rxe8 {[%emt 0:00:07]} f4 {[%emt 0:00:11]} 51. Re4 {[%emt 0:00:15]} f3 {[%emt 0:00:17]} 52. Rxb4 {[%emt 0:00:10]} 1-0

[Event "Bijnor Open 2023"]
[Site "Bijnor"]
[Date "2023.12.02"]
[Round "5.10"]
[White "Sharma, Harish"]
[Black "Ujjwal Chauhan"]
[Result "1-0"]
[ECO "B77"]
[WhiteElo "1904"]
[BlackElo "1243"]
[Annotator "NA RC"]
[PlyCount "97"]
[EventDate "2023.11.29"]
[EventCountry "IND"]
[SourceTitle "playchess.com"]
[Source "ChessBase"]
[SourceQuality "1"]
[TimeControl "5400+30"]

1. e4 {[%emt 0:00:04]} c5 {[%emt 0:00:18]} 2. Nf3 {[%emt 0:00:09]} d6 {[%emt 0:00:09]} 3. d4 {[%emt 0:00:10]} cxd4 {[%emt 0:00:08]} 4. Nxd4 {[%emt 0:00:06]} Nf6 {[%emt 0:00:09]} 5. Nc3 {[%emt 0:00:11]} g6 {[%emt 0:00:08]} 6. f3 {[%emt 0:00:40]} Bg7 {[%emt 0:00:17]} 7. Be3 {[%emt 0:00:08]} O-O {[%emt 0:00:38]} 8. Qd2 {[%emt 0:00:03]} Nc6 {[%emt 0:00:17]} 9. Bc4 {[%emt 0:00:21]} Bd7 {[%emt 0:00:32]} 10. Bb3 {[%emt 0:00:06]} Rc8 {[%emt 0:00:37]} 11. O-O {[%emt 0:00:18]} Ne5 {[%emt 0:05:18]} 12. Rfd1 {[%emt 0:01:48]} Nc4 {[%emt 0:06:53]} 13. Bxc4 {[%emt 0:01:55]} Rxc4 {[%emt 0:00:07]} 14. Nb3 {[%emt 0:04:30]} b6 {[%emt 0:10:30]} 15. Ne2 {[%emt 0:07:18]} Rc8 {[%emt 0:09:20]} 16. c3 {[%emt 0:00:30]} Qc7 {[%emt 0:05:20]} 17. Bh6 {[%emt 0:00:53]} Be6 {[%emt 0:01:31]} 18. Nbd4 {[%emt 0:00:10]} Bc4 {[%emt 0:01:07]} 19. Ng3 {[%emt 0:00:26]} e6 {[%emt 0:07:39]} 20. b3 {[%emt 0:00:59]} Ba6 {[%emt 0:00:26]} 21. c4 {[%emt 0:00:03]} Qc5 {[%emt 0:03:12]} 22. Kh1 {[%emt 0:02:08]} Nh5 {[%emt 0:03:04]} 23. Nxh5 {[%emt 0:02:08]} Qxh5 {[%emt 0:00:34]} 24. Bxg7 {[%emt 0:01:21]} Kxg7 {[%emt 0:00:11]} 25. Nc2 {[%emt 0:01:16]} Rfd8 {[%emt 0:01:33]} 26. Ne3 {[%emt 0:00:09]} Qc5 {[%emt 0:08:21]} 27. Ng4 {[%emt 0:00:21]} Qh5 {[%emt 0:06:52]} 28. Qc3+ {[%emt 0:06:47]} e5 {[%emt 0:00:59]} 29. Qb2 {[%emt 0:02:48]} Qg5 {[%emt 0:03:02]} 30. Qa3 {[%emt 0:00:24]} h5 {[%emt 0:03:10]} 31. Nf2 {[%emt 0:00:51]} Qe3 {[%emt 0:01:00]} 32. Nd3 {[%emt 0:00:19]} Bb7 {[%emt 0:01:58]} 33. Qxa7 {[%emt 0:00:54]} Bc6 {[%emt 0:00:20]} 34. Nb4 {[%emt 0:01:39]} Rd7 {[%emt 0:01:27]} 35. Qa3 {[%emt 0:00:55]} Qc5 {[%emt 0:04:43]} 36. Nc2 {[%emt 0:00:18]} Ra8 {[%emt 0:00:45]} 37. Qb4 {[%emt 0:01:08]} Rad8 {[%emt 0:01:47]} 38. a4 {[%emt 0:00:11]} f5 {[%emt 0:00:26]} 39. exf5 {[%emt 0:01:30]} gxf5 {[%emt 0:00:32]} 40. Qd2 {[%emt 0:00:26]} f4 {[%emt 0:00:44]} 41. Nb4 {[%emt 0:00:46]} Bb7 {[%emt 0:00:43]} 42. Nd5 {[%emt 0:00:19]} Kh6 {[%emt 0:01:53]} 43. g3 {[%emt 0:02:12]} Bxd5 {[%emt 0:00:31]} 44. cxd5 {[%emt 0:00:03]} Rf7 {[%emt 0:01:20]} 45. Rac1 {[%emt 0:00:21]} Qa5 {[%emt 0:02:05]} 46. b4 {[%emt 0:01:17]} Qxa4 {[%emt 0:00:30]} 47. gxf4 {[%emt 0:00:08]} exf4 {[%emt 0:00:21]} 48. Rg1 {[%emt 0:01:37]} Qb3 {[%emt 0:01:08]} 49. Qg2 {[%emt 0:01:39]} 1-0

[Event "Bijnor Open 2023"]
[Site "Bijnor"]
[Date "2023.12.02"]
[Round "6.1"]
[White "Gopal Krishna Maheshwari"]
[Black "Kulkarni, Vikramaditya"]
[Result "0-1"]
[ECO "B06"]
[WhiteElo "1627"]
[BlackElo "2209"]
[Annotator "ChessBase"]
[PlyCount "94"]
[EventDate "2023.11.29"]
[EventCountry "IND"]
[SourceTitle "playchess.com"]
[Source "ChessBase"]
[SourceQuality "1"]
[TimeControl "5400+30"]

1. e4 {[%emt 0:00:04]} g6 {[%emt 0:00:42]} 2. d4 {[%emt 0:00:20]} d6 {[%emt 0:00:22]} 3. Nf3 {[%emt 0:00:45]} a6 {[%emt 0:01:10]} 4. h3 {[%emt 0:01:43]} Nd7 {[%emt 0:01:41]} 5. Be3 {[%emt 0:01:35]} Bg7 {[%emt 0:00:28]} 6. Nbd2 {[%emt 0:00:54]} b6 {[%emt 0:08:37]} 7. c3 {[%emt 0:02:43]} Bb7 {[%emt 0:02:08]} 8. a4 {[%emt 0:02:20]} e6 {[%emt 0:01:09]} 9. a5 {[%emt 0:08:07]} b5 {[%emt 0:00:49]} 10. Bd3 {[%emt 0:04:35]} c5 {[%emt 0:04:26]} 11. b4 {[%emt 0:02:55]} Ne7 {[%emt 0:13:13]} 12. O-O {[%emt 0:11:06]} O-O {[%emt 0:03:48]} 13. Ne1 {[%emt 0:16:53]} f5 {[%emt 0:03:01]} 14. f3 {[%emt 0:02:12]} Rc8 {[%emt 0:04:57]} 15. Rc1 {[%emt 0:03:10]} c4 {[%emt 0:07:13]} 16. Bb1 {[%emt 0:00:53]} f4 {[%emt 0:00:18]} 17. Bf2 {[%emt 0:00:13]} g5 {[%emt 0:02:44]} 18. g4 {[%emt 0:02:48]} fxg3 {[%emt 0:04:15]} 19. Bxg3 {[%emt 0:00:03]} e5 {[%emt 0:00:20]} 20. d5 {[%emt 0:06:38]} Nf6 {[%emt 0:00:59]} 21. Kh2 {[%emt 0:05:02]} Nh5 {[%emt 0:02:24]} 22. Rg1 {[%emt 0:01:09]} Ng6 {[%emt 0:00:48]} 23. Nf1 {[%emt 0:02:26]} Rc7 {[%emt 0:00:39]} 24. Ne3 {[%emt 0:03:27]} Bc8 {[%emt 0:00:37]} 25. N1g2 {[%emt 0:02:18]} Nhf4 {[%emt 0:11:55]} 26. Nf5 {[%emt 0:01:43]} Nxg2 {[%emt 0:00:39]} 27. Rxg2 {[%emt 0:00:35]} Bxf5 {[%emt 0:00:13]} 28. exf5 {[%emt 0:00:19]} Nf4 {[%emt 0:00:37]} 29. Bxf4 {[%emt 0:02:33]} exf4 {[%emt 0:00:19]} 30. Qg1 {[%emt 0:01:55]} Re7 {[%emt 0:04:33]} 31. Rxg5 {[%emt 0:04:24]} Kh8 {[%emt 0:00:18]} 32. Be4 {[%emt 0:03:06]} Rfe8 {[%emt 0:07:50]} 33. Rc2 {[%emt 0:02:33]} Rf7 {[%emt 0:06:11]} 34. Rh5 {[%emt 0:01:16]} Bf6 {[%emt 0:01:55]} 35. Rh6 {[%emt 0:02:20]} Rg8 {[%emt 0:00:42]} 36. Rg6 {[%emt 0:01:57]} hxg6 {[%emt 0:00:50]} 37. fxg6 {[%emt 0:00:02]} Re7 {[%emt 0:00:30]} 38. Qg4 {[%emt 0:00:42]} Kg7 {[%emt 0:00:29]} 39. Kg2 {[%emt 0:01:27]} Rh8 {[%emt 0:01:10]} 40. Qxf4 {[%emt 0:00:20]} Rh4 {[%emt 0:00:03]} 41. Qg3 {[%emt 0:00:44]} Re5 {[%emt 0:01:03]} 42. Kf1 {[%emt 0:00:34]} Bg5 {[%emt 0:01:12]} 43. Qg1 {[%emt 0:00:26]} Qf6 {[%emt 0:00:40]} 44. Kg2 {[%emt 0:00:35]} Bd2 {[%emt 0:01:55]} 45. Qf2 {[%emt 0:00:32]} Qg5+ {[%emt 0:00:42]} 46. Kf1 {[%emt 0:00:08]} Be3 {[%emt 0:00:30]} 47. Qg2 {[%emt 0:00:45]} Qf4 {[%emt 0:00:17]} 0-1

[Event "Bijnor Open 2023"]
[Site "Bijnor"]
[Date "2023.12.02"]
[Round "6.2"]
[White "Mohammad Sameed"]
[Black "Ramnathan, Balasubramaniam"]
[Result "1/2-1/2"]
[ECO "B06"]
[WhiteElo "1468"]
[BlackElo "1920"]
[Annotator "NA"]
[PlyCount "127"]
[EventDate "2023.11.29"]
[EventCountry "IND"]
[SourceTitle "playchess.com"]
[Source "ChessBase"]
[SourceQuality "1"]
[TimeControl "5400+30"]

1. e4 {[%emt 0:00:08]} g6 {[%emt 0:00:12]} 2. d4 {[%emt 0:00:18]} Bg7 {[%emt 0:00:06]} 3. Nc3 {[%emt 0:00:23]} d6 {[%emt 0:00:42]} 4. Nf3 {[%emt 0:00:25]} Bg4 {[%emt 0:00:40]} 5. Be3 {[%emt 0:00:12]} Nc6 {[%emt 0:01:01]} 6. Qd2 {[%emt 0:00:43]} Bxf3 {[%emt 0:00:57]} 7. gxf3 {[%emt 0:00:07]} e5 {[%emt 0:00:06]} 8. d5 {[%emt 0:01:29]} Nce7 {[%emt 0:00:45]} 9. Bb5+ {[%emt 0:03:15]} Kf8 {[%emt 0:02:35]} 10. f4 {[%emt 0:03:22]} exf4 {[%emt 0:02:26]} 11. Bxf4 {[%emt 0:01:07]} Nf6 {[%emt 0:00:09]} 12. O-O-O {[%emt 0:06:28]} a6 {[%emt 0:01:02]} 13. Be2 {[%emt 0:00:23]} b5 {[%emt 0:00:07]} 14. a3 {[%emt 0:01:45]} Nd7 {[%emt 0:01:58]} 15. Bh6 {[%emt 0:00:47]} Ng8 {[%emt 0:00:16]} 16. Be3 {[%emt 0:10:16]} Qe7 {[%emt 0:00:19]} 17. h4 {[%emt 0:01:20]} h5 {[%emt 0:01:40]} 18. Rde1 {[%emt 0:22:18]} Bf6 {[%emt 0:00:57]} 19. Bg5 {[%emt 0:01:54]} Kg7 {[%emt 0:06:20]} 20. f4 {[%emt 0:02:05]} Bxc3 {[%emt 0:14:39]} 21. Qxc3+ {[%emt 0:02:22]} f6 {[%emt 0:00:07]} 22. f5 {[%emt 0:05:43]} Nc5 {[%emt 0:00:48]} 23. Be3 {[%emt 0:07:04]} Nxe4 {[%emt 0:02:00]} 24. Qc6 {[%emt 0:02:03]} Nh6 {[%emt 0:05:10]} 25. Bd3 {[%emt 0:07:32]} gxf5 {[%emt 0:00:41]} 26. Rhf1 {[%emt 0:00:37]} Qe8 $2 {[%emt 0:13:38]} (26... Qd8 {might work better.} 27. Bxh6+ Rxh6 28. Bxe4 fxe4 29. Rxe4 Rg6) 27. Qxc7+ $18 {[%emt 0:01:58]} Qf7 {[%emt 0:01:51]} 28. Bxh6+ {[%emt 0:01:58]} Rxh6 {[%emt 0:00:06]} 29. Qc6 {[%emt 0:01:09]} Qf8 {[%emt 0:05:59]} 30. Rxf5 {[%emt 0:01:49]} Nc5 {[%emt 0:00:09]} 31. Rf3 {[%emt 0:07:55]} Rc8 {[%emt 0:03:10]} 32. Qb6 {[%emt 0:00:13]} Qd8 {[%emt 0:01:06]} 33. Rg3+ {[%emt 0:02:53]} Kf7 {[%emt 0:01:59]} 34. Reg1 {[%emt 0:01:43]} Nxd3+ {[%emt 0:00:12]} 35. Kb1 {[%emt 0:00:03]} Rh7 {[%emt 0:01:09]} 36. Qxd8 {[%emt 0:03:25]} Rxd8 {[%emt 0:00:05]} 37. Rxd3 {[%emt 0:00:06]} Rg7 {[%emt 0:00:56]} 38. Rxg7+ {[%emt 0:00:32]} Kxg7 {[%emt 0:00:07]} 39. Re3 {[%emt 0:00:10]} Kg6 {[%emt 0:00:46]} 40. Kc1 {[%emt 0:00:13]} Kf5 {[%emt 0:00:23]} 41. Re6 {[%emt 0:01:01]} Kg4 {[%emt 0:00:13]} 42. Rxf6 {[%emt 0:00:08]} Kxh4 {[%emt 0:00:04]} 43. Rg6 {[%emt 0:00:16]} Kh3 {[%emt 0:00:19]} 44. Kd2 {[%emt 0:00:07]} h4 {[%emt 0:00:14]} 45. b3 {[%emt 0:00:57]} Kh2 {[%emt 0:00:25]} 46. c4 {[%emt 0:00:36]} h3 {[%emt 0:02:12]} 47. Kc3 {[%emt 0:00:09]} bxc4 {[%emt 0:01:27]} 48. bxc4 {[%emt 0:00:36]} Kh1 {[%emt 0:00:06]} 49. c5 {[%emt 0:01:21]} dxc5 {[%emt 0:00:50]} 50. Kc4 {[%emt 0:00:05]} a5 {[%emt 0:00:36]} 51. d6 {[%emt 0:00:10]} a4 {[%emt 0:01:30]} 52. Kxc5 {[%emt 0:00:08]} h2 {[%emt 0:00:42]} 53. Kb5 {[%emt 0:01:06]} Rb8+ {[%emt 0:03:55]} 54. Kxa4 {[%emt 0:00:19]} Rb1 {[%emt 0:01:02]} 55. d7 {[%emt 0:00:51]} Rd1 {[%emt 0:00:10]} 56. Rg7 {[%emt 0:00:20]} Rd3 {[%emt 0:12:00]} 57. Kb5 {[%emt 0:01:10]} Rxa3 {[%emt 0:00:48]} 58. d8=Q {[%emt 0:01:05]} Rb3+ {[%emt 0:00:16]} 59. Kc4 {[%emt 0:00:24]} Rc3+ {[%emt 0:00:06]} 60. Kb5 {[%emt 0:00:34]} Rb3+ {[%emt 0:00:05]} 61. Kc6 {[%emt 0:00:19]} Rc3+ {[%emt 0:00:08]} 62. Kb7 {[%emt 0:00:09]} Rb3+ {[%emt 0:00:05]} 63. Kc8 {[%emt 0:00:27]} Rb8+ {[%emt 0:00:06]} 64. Kxb8 {[%emt 0:00:21]} 1/2-1/2

[Event "Bijnor Open 2023"]
[Site "Bijnor"]
[Date "2023.12.02"]
[Round "6.3"]
[White "Rahul Suri"]
[Black "Amartya Kumar"]
[Result "0-1"]
[ECO "B51"]
[WhiteElo "1184"]
[BlackElo "1375"]
[Annotator "NA RC"]
[PlyCount "72"]
[EventDate "2023.11.29"]
[EventCountry "IND"]
[SourceTitle "playchess.com"]
[Source "ChessBase"]
[SourceQuality "1"]
[TimeControl "5400+30"]

1. e4 {[%emt 0:00:04]} c5 {[%emt 0:00:19]} 2. Nf3 {[%emt 0:00:08]} d6 {[%emt 0:00:05]} 3. Bb5+ {[%emt 0:00:52]} Nd7 {[%emt 0:00:14]} 4. d4 {[%emt 0:01:55]} cxd4 {[%emt 0:00:05]} 5. Qxd4 {[%emt 0:00:35]} a6 {[%emt 0:00:19]} 6. Be2 {[%emt 0:01:03]} e5 {[%emt 0:01:05]} 7. Qe3 {[%emt 0:03:18]} Ngf6 {[%emt 0:01:07]} 8. c4 {[%emt 0:03:00]} Be7 {[%emt 0:03:23]} 9. Nc3 {[%emt 0:01:35]} b6 {[%emt 0:06:35]} 10. O-O {[%emt 0:03:29]} O-O {[%emt 0:01:08]} 11. Rd1 {[%emt 0:03:35]} Bb7 {[%emt 0:01:01]} 12. h3 {[%emt 0:04:22]} Qc7 {[%emt 0:02:16]} 13. b3 {[%emt 0:05:11]} Rac8 {[%emt 0:04:47]} 14. Bb2 {[%emt 0:02:43]} Qb8 {[%emt 0:02:45]} 15. Rac1 {[%emt 0:10:46]} Nc5 {[%emt 0:02:25]} 16. Bd3 {[%emt 0:06:54]} Nh5 {[%emt 0:12:57]} 17. g3 {[%emt 0:03:27]} Rc7 {[%emt 0:03:46]} 18. Bb1 {[%emt 0:04:40]} Qc8 {[%emt 0:01:25]} 19. Kh2 {[%emt 0:01:19]} h6 {[%emt 0:07:27]} 20. Qe2 {[%emt 0:02:28]} Ne6 {[%emt 0:06:53]} 21. Nd5 {[%emt 0:10:45]} Bxd5 {[%emt 0:06:28]} 22. cxd5 {[%emt 0:00:31]} Nef4 {[%emt 0:02:33]} 23. gxf4 {[%emt 0:03:58]} Nxf4 {[%emt 0:01:36]} 24. Qf1 {[%emt 0:00:25]} Bg5 {[%emt 0:02:00]} 25. Rxc7 {[%emt 0:04:05]} Qxc7 {[%emt 0:00:03]} 26. Nxg5 {[%emt 0:01:01]} hxg5 {[%emt 0:00:02]} 27. Bc1 {[%emt 0:01:07]} Qe7 {[%emt 0:00:42]} 28. Bxf4 {[%emt 0:00:44]} exf4 {[%emt 0:00:01]} 29. Qd3 {[%emt 0:03:05]} g6 {[%emt 0:00:53]} 30. Rc1 {[%emt 0:03:04]} g4 {[%emt 0:01:03]} 31. Rc6 {[%emt 0:05:15]} Qh4 {[%emt 0:00:53]} 32. Qf1 {[%emt 0:04:39]} Kg7 {[%emt 0:01:26]} 33. Qg2 {[%emt 0:02:13]} Rh8 {[%emt 0:00:46]} 34. Kg1 {[%emt 0:00:42]} gxh3 {[%emt 0:00:06]} 35. Qh2 {[%emt 0:00:41]} Qg4+ {[%emt 0:00:08]} 36. Kh1 {[%emt 0:00:38]} Qf3+ {[%emt 0:00:01]} 0-1

[Event "Bijnor Open 2023"]
[Site "Bijnor"]
[Date "2023.12.02"]
[Round "6.4"]
[White "Daksh Goyal"]
[Black "Gaurav Sunil Dutt Rana"]
[Result "1-0"]
[ECO "C90"]
[WhiteElo "1814"]
[BlackElo "1235"]
[Annotator "NA RC"]
[PlyCount "53"]
[EventDate "2023.11.29"]
[EventCountry "IND"]
[SourceTitle "playchess.com"]
[Source "ChessBase"]
[SourceQuality "1"]
[TimeControl "5400+30"]

1. e4 {[%emt 0:00:30]} e5 {[%emt 0:00:11]} 2. Nf3 {[%emt 0:00:07]} Nc6 {[%emt 0:00:05]} 3. Bb5 {[%emt 0:00:04]} a6 {[%emt 0:00:05]} 4. Ba4 {[%emt 0:00:03]} Nf6 {[%emt 0:00:06]} 5. O-O {[%emt 0:00:08]} Be7 {[%emt 0:00:18]} 6. Re1 {[%emt 0:00:28]} b5 {[%emt 0:00:08]} 7. Bb3 {[%emt 0:00:02]} O-O {[%emt 0:01:24]} 8. a4 {[%emt 0:06:01]} Bb7 {[%emt 0:03:03]} 9. c3 {[%emt 0:09:59]} d6 {[%emt 0:04:27]} 10. d4 {[%emt 0:02:50]} Na5 {[%emt 0:04:30]} 11. Bc2 {[%emt 0:00:44]} Nd7 {[%emt 0:00:57]} 12. Nbd2 {[%emt 0:03:43]} c5 {[%emt 0:02:08]} 13. Nf1 {[%emt 0:07:18]} Re8 {[%emt 0:08:33]} 14. Ne3 {[%emt 0:12:49]} g6 {[%emt 0:04:27]} 15. axb5 {[%emt 0:01:30]} axb5 {[%emt 0:00:58]} 16. b3 {[%emt 0:02:00]} exd4 {[%emt 0:07:08]} 17. cxd4 {[%emt 0:00:46]} c4 {[%emt 0:00:23]} 18. bxc4 {[%emt 0:04:50]} Nxc4 {[%emt 0:07:47]} 19. Rb1 {[%emt 0:01:29]} Nxe3 {[%emt 0:03:47]} 20. Bxe3 {[%emt 0:03:08]} Qa5 {[%emt 0:04:54]} 21. Bd3 {[%emt 0:06:10]} b4 {[%emt 0:04:49]} 22. Bd2 {[%emt 0:05:23]} d5 {[%emt 0:02:06]} 23. exd5 {[%emt 0:01:08]} Bxd5 {[%emt 0:00:33]} 24. Rxe7 {[%emt 0:01:55]} Rxe7 {[%emt 0:00:13]} 25. Bxb4 {[%emt 0:00:07]} Bxf3 {[%emt 0:02:20]} 26. Qxf3 {[%emt 0:01:10]} Rb8 {[%emt 0:01:36]} 27. Bxa5 {[%emt 0:00:41]} 1-0

[Event "Bijnor Open 2023"]
[Site "Bijnor"]
[Date "2023.12.02"]
[Round "6.5"]
[White "Ravish Chaudhary"]
[Black "Sharma, Hari O.M."]
[Result "1-0"]
[ECO "E69"]
[WhiteElo "1351"]
[BlackElo "2045"]
[Annotator "NA"]
[PlyCount "98"]
[EventDate "2023.11.29"]
[EventCountry "IND"]
[SourceTitle "playchess.com"]
[Source "ChessBase"]
[SourceQuality "1"]
[TimeControl "5400+30"]

1. d4 {[%emt 0:00:06]} Nf6 {[%emt 0:01:14]} 2. c4 {[%emt 0:00:05]} g6 {[%emt 0:02:17]} 3. g3 {[%emt 0:00:14]} Bg7 {[%emt 0:00:20]} 4. Bg2 {[%emt 0:00:14]} O-O {[%emt 0:00:41]} 5. Nc3 {[%emt 0:00:15]} d6 {[%emt 0:01:03]} 6. Nf3 {[%emt 0:00:08]} Nbd7 {[%emt 0:00:45]} 7. e4 {[%emt 0:00:55]} e5 {[%emt 0:03:29]} 8. O-O {[%emt 0:02:27]} c6 {[%emt 0:07:19]} 9. h3 {[%emt 0:02:43]} Re8 {[%emt 0:04:22]} 10. Be3 {[%emt 0:02:08] 10.Be3 is better than 10.Re1.} Qe7 {[%emt 0:04:28]} 11. b4 {[%emt 0:08:12]} exd4 {[%emt 0:09:06] [#]} 12. Bxd4 $146 {[%emt 0:03:37]} ({Predecessor:} 12. Nxd4 Ne5 13. Qe2 Be6 14. Nxe6 Qxe6 15. c5 Red8 16. cxd6 Ne8 17. Rac1 Nxd6 18. f4 Nec4 {1-0 Will,P (2095)-McAndrew,R (1911) Rhein Main op-A 20th 2017 (2)}) 12... c5 {[%emt 0:03:38]} 13. bxc5 {[%emt 0:01:15]} dxc5 {[%emt 0:02:47]} 14. Bxf6 {[%emt 0:25:22]} Qxf6 {[%emt 0:03:59]} 15. Rc1 {[%emt 0:03:24]} Ne5 {[%emt 0:02:13]} 16. Nd5 {[%emt 0:01:31]} Qd8 {[%emt 0:01:32]} 17. Qa4 {[%emt 0:01:16]} Nxf3+ {[%emt 0:02:21]} 18. Bxf3 {[%emt 0:00:09]} Bxh3 {[%emt 0:00:13]} 19. Rfd1 {[%emt 0:01:11]} Bd4 {[%emt 0:01:27]} 20. Kh2 {[%emt 0:03:42]} Bd7 {[%emt 0:04:55]} 21. Qxd7 {[%emt 0:00:11]} Qxd7 {[%emt 0:03:54]} 22. Nf6+ {[%emt 0:00:04]} Kf8 {[%emt 0:00:44]} 23. Nxd7+ {[%emt 0:00:22]} Ke7 {[%emt 0:00:14] [#]} 24. Bg4 $14 {[%emt 0:15:39]} (24. Rxd4 $1 $16 cxd4 25. Ne5) 24... f5 {[%emt 0:00:34]} (24... h5 $1 $14 25. Bh3 f5) 25. exf5 {[%emt 0:00:28]} Kxd7 {[%emt 0:00:11]} 26. fxg6+ {[%emt 0:00:08]} Kc7 {[%emt 0:00:56]} 27. gxh7 {[%emt 0:00:53]} Rf8 {[%emt 0:00:52]} 28. Rd2 {[%emt 0:04:41]} Rf7 {[%emt 0:00:15]} 29. Kg2 {[%emt 0:00:17]} Rxh7 {[%emt 0:00:10]} 30. Rh1 {[%emt 0:00:41]} Rxh1 {[%emt 0:04:03]} 31. Kxh1 {[%emt 0:00:02]} Kb6 {[%emt 0:00:39]} 32. Kg2 {[%emt 0:01:23]} Ka5 {[%emt 0:00:34]} 33. f4 {[%emt 0:08:30]} Kb4 {[%emt 0:03:04]} 34. Be6 {[%emt 0:01:46]} Ka3 {[%emt 0:01:24]} 35. g4 {[%emt 0:00:57]} a6 {[%emt 0:01:51]} 36. g5 {[%emt 0:00:57]} Kb4 {[%emt 0:00:25]} 37. Kf3 {[%emt 0:00:35]} Kc3 {[%emt 0:00:50]} 38. Rg2 {[%emt 0:01:19]} b5 {[%emt 0:00:56]} 39. g6 {[%emt 0:03:30]} Bg7 {[%emt 0:03:15]} 40. Re2 {[%emt 0:01:28]} b4 {[%emt 0:02:04]} 41. Bd5 {[%emt 0:00:48]} Ra7 {[%emt 0:00:21]} 42. f5 {[%emt 0:05:22]} a5 {[%emt 0:00:33]} 43. Kg4 {[%emt 0:01:13]} a4 {[%emt 0:00:49]} 44. Kg5 {[%emt 0:00:46]} Kd3 {[%emt 0:13:08]} 45. Re1 {[%emt 0:01:06]} Ra6 {[%emt 0:07:22]} 46. Re6 {[%emt 0:00:49]} Rxe6 47. fxe6 a3 {[%emt 0:00:01]} 48. e7 b3 49. axb3 {[%emt 0:00:01]} a2 {[%emt 0:00:01]} 1-0

[Event "Bijnor Open 2023"]
[Site "Bijnor"]
[Date "2023.12.02"]
[Round "6.6"]
[White "Ojas Joshi"]
[Black "Sharma, Harish"]
[Result "1-0"]
[ECO "A90"]
[WhiteElo "1342"]
[BlackElo "1904"]
[Annotator "NA RC"]
[PlyCount "39"]
[EventDate "2023.11.29"]
[EventCountry "IND"]
[SourceTitle "playchess.com"]
[Source "ChessBase"]
[SourceQuality "1"]
[TimeControl "5400+30"]

1. d4 {[%emt 0:00:02]} e6 {[%emt 0:00:08]} 2. c4 {[%emt 0:00:05]} d5 {[%emt 0:00:07]} 3. g3 {[%emt 0:00:05]} c6 {[%emt 0:00:07]} 4. Nf3 {[%emt 0:02:02]} f5 {[%emt 0:00:22]} 5. Bg2 {[%emt 0:00:27]} Nf6 {[%emt 0:00:08]} 6. O-O {[%emt 0:01:44]} Bd6 {[%emt 0:00:15]} 7. b3 {[%emt 0:02:29]} Nbd7 {[%emt 0:00:09]} 8. Bb2 {[%emt 0:00:55]} Qe7 {[%emt 0:00:06]} 9. Nc3 {[%emt 0:02:36]} O-O {[%emt 0:00:09]} 10. e3 {[%emt 0:04:53]} b6 {[%emt 0:02:22]} 11. Nd2 {[%emt 0:02:50]} Ba6 {[%emt 0:00:22]} 12. Re1 {[%emt 0:01:29]} Ne4 {[%emt 0:00:06]} 13. Ncxe4 {[%emt 0:12:00]} fxe4 {[%emt 0:00:29]} 14. f3 {[%emt 0:07:55]} exf3 {[%emt 0:00:51]} 15. Bxf3 {[%emt 0:00:13]} Bb4 {[%emt 0:00:14]} 16. Bg2 {[%emt 0:01:58]} Qf6 {[%emt 0:03:12]} 17. Kh1 {[%emt 0:09:06]} Qh6 {[%emt 0:00:34]} 18. Kg1 {[%emt 0:05:19]} Nf6 {[%emt 0:02:20]} 19. Rc1 {[%emt 0:06:39]} Ng4 {[%emt 0:00:53]} 20. Rf1 {[%emt 0:05:50]} 1-0